{"text_format":"1","workbook":"xlsx","n_sheets":4,"sheets":["Parámetros","Resultados","InstruccDiligenciamiento","Formato 301 - PP&E Carretero"],"not_rendered":{"charts":0,"images":30,"macros":1,"external_links":0,"defined_names":7,"comments":0,"pivot_tables":1},"unopened":[],"bounds":{"document_bytes":16777216,"sheet_cells":100000,"rows_first":2000,"rows_last":500,"rows_between":2000,"halvings":0,"cell_chars":16384,"cell_head_chars":4096},"cells_cut":0,"cells_raw":0,"read":"whole","date_system":"1900"}

{"sheet":"Parámetros","index":0,"n_rows":47,"n_cols":20,"rows_kept":47,"cut":false,"hidden":true,"merged":[]}
[]
[null,"Tipo","Grupo",null,"Subgrupo",null,"Nombre del Proyecto","Gener.","No. Contrato Concesión","Nombre del Concesionario o Contratista","NIT Concesionario","Fecha inicial del contrato:","Plazo inicial de la concesión (años):",null,"Estados",null,"Adquisicion",null,"Periodicidad"]
[null,"Propiedades, Planta Y Equipo","1.1 Equipos de la(s) Estación(es) de Peaje",null,"Casetas Y Campamentos",null,"Seleccionar",null,null,null,null,null,null,null,"Traslado",null,"Nuevo",null,"Seleccionar","INDIRECTO(\"T_Grupo[Grupo]\")"]
[null,"Propiedades, Planta Y Equipo","1.2 Equipos de la(s) Estación(es) de Pesaje",null,"Equipo De Centros De Control",null,"Accenorte","4G","001-2017","Accesos Norte De Bogotá S.A.S",901039225,"2017-04-07",25,null,"Retirados",null,"Sustitución",null,"Reversión","INDIRECTO(\"Estados[Estados]\")"]
[null,"Propiedades, Planta Y Equipo","1.3 Equipos de centros de atención al  usuario",null,"Equipo De Computación",null,"Accesos Norte Fase II","5G","001-2022","Concesionaria Ruta Bogotá Norte S.A.S.",901580796,"2022-06-23",29,null,null,null,null,null,"Anual","INDIRECTO(\"T_Adquisicion\")"]
[null,"Propiedades, Planta Y Equipo","1.4 Equipos del (los) Centro(s) de Control de Operaciones",null,"Equipo De Comunicación",null,"ALO Sur","5G","003-2021","Alo Sur Sas",901551242,"2022-07-19",30]
[null,"Propiedades, Planta Y Equipo","1.5 Equipos instalados para la Operación del Proyecto",null,"Equipo De Seguridad Y Rescate",null,"Armenia - Pereira - Manizales","1G","113-1997","Autopistas Del Café S.A.",830025490,"1997-06-16",30]
[null,"Propiedades, Planta Y Equipo","1.6 Equipos entregados a la Policía de Carreteras",null,"Equipo De Servicio Ambulatorio",null,"Autopista Concesión Pacifico 1","4G","007-2014","Concesionaria Vial Del Pacifico  S.A.S - Covipacifico S.A.",900744773,"2014-11-11",25]
[null,"Propiedades, Planta Y Equipo","1.7 Elementos de Traslado Asistencial Médico (TAM)",null,"Equipo De Transporte - De Elevación",null,"Autopista Concesión Pacifico 2","4G","006-2014","Concesionaria La Pintada",900740893,"2014-11-11",25]
[null,"Software Y Licencias","2.1 Software",null,"Equipo De Transporte - De Tracción",null,"Autopista Concesión Pacifico 3","4G","005-2014","Concesionario Pacifico 3 S.A.S",900763357,"2014-11-04",25]
[null,"Software Y Licencias","2.2 Licencias",null,"Equipo De Transporte - Terrestre",null,"Autopista Para La Prosperidad Mar 1","4G","014-2015","Desarrollo Vía La Mar Sas",900869678,"2015-10-15",25]
[null,null,null,null,"Equipos De Radares",null,"Autopista Para La Prosperidad Mar 2","4G","018-2015","Autopistas Uraba Sas",900902591,"2016-01-12",25]
[null,null,null,null,"Líneas Y Cables De Telecomunicaciones",null,"Autopistas Al Rio Magdalena 2","4G","008-2014","Autopista Río Magdalena S.A.S Grupo Ohl",900788548,"2015-03-14",25]
[null,null,null,null,"Líneas Y Cables De Transmisión",null,"Autopistas Conexión Norte Remedios Zaragoza Caucasia","4G","009-2014","Concesión Autopistas Del Nordeste S.A.S",900793991,"2015-02-05",25]
[null,null,null,null,"Muebles Y Enseres",null,"Autopistas del Caribe - Ruta Caribe 2","4G","002-2021","Autopistas Del Caribe Sas",901515242,"2021-10-19",35]
[null,null,null,null,"Otra Maquinaria Y Equipo",null,"Bogota - Siberia - Punta el vino -  Villeta","1G","447-1994","Concesión Sabana De Occidente",800235280,"1994-08-24",32]
[null,null,null,null,"Otras Redes, Líneas Y Cables",null,"Briceño-Tunja-Sogamoso","3G","377-2002","Bts Concesionario Sas",901371481,"2002-09-23",30]
[null,null,null,null,"Plantas De Generación",null,"Bucaramanga - Pamplona","4G","002-2016","Autovía Bucaramanga Pamplona Sas",900972713,"2016-07-21",25]
[null,null,null,null,"Satélites Y Antenas",null,"Bucaramanga-Barrancabermeja-Yondó","4G","013-2015","Concesionaria Ruta Del Cacao Sas",900871368,"2015-10-13",25]
[null,null,null,null,"Software - Concesiones",null,"Buga Loboguerrero Buenaventura","5G","004-2022","Union Vial Camino Del Pacifico Sas",830054539,"2023-02-16",29]
[null,null,null,null,"Licencias - Concesiones",null,"IP - Cambao - Manizales ","4G","008-2015","Concesionaria Alternativas Viales Sas",900864150,"2015-08-21",34]
[null,null,null,null,null,null,"Cartagena Barranquilla 4G","4G","004-2014","Concesion Costera Cartagena - Barranquilla",900763355,"2014-11-04",25]
[null,null,null,null,null,null,"Cordoba - Sucre","3G","002-2007","Autopisas De La Sabana",900135168,"2007-11-01",17]
[null,null,null,null,null,null,"Desarrollo Vial Para El Oriente De Medellin Y Valle De Rionegro","1G","275-1996","Devimed S.A.",811005050,"1996-06-16",30]
[null,null,null,null,null,null,"Fontibon Facatativa Los Alpes","1G","937-1995","Concesiones Ccfc",830006021,"1995-09-25",29]
[null,null,null,null,null,null,"Girardot - Honda-Puerto Salgar ","4G","003-2014","Concesión Alto Magdalena",900745219,"2014-11-04",25]
[null,null,null,null,null,null,"IP Antioquia - Bolivar","4G","016-2015","Concesión Ruta Al Mar S.A.S.",900894996,"2015-11-27",34]
[null,null,null,null,null,null,"IP Chirajara Fundadores/ Sociedad Vial Andina S.A.S.","4G","005-2015","Concesionaria Vial Andina S.A.S. Coviandina Sas",900848064,"2015-07-23",39]
[null,null,null,null,null,null,"IP Girardot - Ibague - Cajamarca","4G","002-2015","Gica S.A.",900816750,"2015-04-14",28]
[null,null,null,null,null,null,"IP Malla Vial del Meta","4G","004-2015","Concesión Vial De Los Llanos S.A",900843297,"2015-06-09",30]
[null,null,null,null,null,null,"IP Neiva - Espinal - Girardot","5G","017-2015","Autovia Neiva Girardot Sas",900903279,"2015-12-23",30]
[null,null,null,null,null,null,"IP Tercer Carril","4G","004-2016","Vía 40 Express Sas ",901009478,"2016-12-01",30]
[null,null,null,null,null,null,"IP Vias Del Nus","4G","001-2016","Concesión Vías Del Nus",900920562,"2016-03-09",30]
[null,null,null,null,null,null,"Mulaló – Loboguerrero.","4G","001-2015","Concesionaria Nueva Vía Al Mar S.A.S",900809931,"2015-03-17",25]
[null,null,null,null,null,null,"Nueva Malla Vial Del Valle Del Cauca – Corredor Accesos Cali Y Palmira","4G","001-2021","Concesionarias Ruta Del Valle Sas",901489687,"2021-09-01",19]
[null,null,null,null,null,null,"Pamplona - Cucuta","4G","002-2017","Union Vial Rio Pamplonita Sas",901082545,"2017-07-31",25]
[null,null,null,null,null,null,"Pasto - Rumichaca","4G","015-2015","Concesionaria Vial Unión Del Sur S.A.S.",900880846,"2015-10-27",25]
[null,null,null,null,null,null,"Perimetral De Oriente Cundinamarca","4G","002-2014","Concesión Perimetral Oriental De Bogota Sas",900761657,"2014-12-19",25]
[null,null,null,null,null,null,"Popayan - Santander De Quilichao","4G","011-2015","Nuevo Cauca Sas - Popayan - Santander De Quilichao",900866440,"2015-09-23",25]
[null,null,null,null,null,null,"Puerta de Hierro - Palmar de Varela y Carreto - Cruz del Viso","4G","007-2015","Concesionaria Montes De Maria",900858096,"2015-08-19",25]
[null,null,null,null,null,null,"Ruta Del Sol (Sector 3)","4G","007-2010","Concesionaria Yuma S.A.",900373092,"2011-06-01",22]
[null,null,null,null,null,null,"Santa Marta-Riohacha-Paraguachon","1G","445-1994","Santa Marta-Paraguachon S.A.",800235278,"1994-08-24",36]
[null,null,null,null,null,null,"Santana - Mocoa - Neiva","4G","012-2015","Concesinaria Ruta Al Sur",901482899,"2015-09-13",25]
[null,null,null,null,null,null,"Transversal Del Sisga","4G","009-2015","Concesion Transversal Del Sisga S.A.S",901161505,"2015-08-28",25]
[null,null,null,null,null,null,"Troncal Del Magdalena 2","5G","003-2022","Autopista Del Rio Grande S.A.S. ",901607093,"2022-12-01",29]
[null,null,null,null,null,null,"Troncal Magdalena 1 Puerto Salgar - Barrancabermeja","5G","002-2022","Autopistas Magdalena Medio SAS",901602085,"2022-12-01",25]
[null,null,null,null,null,null,"Villavicencio -Yopal","4G","010-2015","Concesionaria Vial Del Oriente Sas",900862215,"2015-09-08",25]

{"sheet":"Resultados","index":1,"n_rows":12,"n_cols":8,"rows_kept":12,"cut":false,"hidden":true,"merged":[]}
[]
[null,"Concepto","Valor Activo ","Deprec. / Amortiz. Acumulada","Valor remanente Activo"]
[]
[]
[]
[null,null,"Etiquetas de columna"]
[null,null,"Valor Activo ",null,"Deprec. / Amortiz. Acumulada",null,"Total Valor Activo ","Total Deprec. / Amortiz. Acumulada"]
[null,"Concepto","3. Posterior","#¡NUM!","3. Posterior","#¡NUM!"]
[null,"Activo",20330000,0,0,0,20330000,0]
[null,0,0,0,0,0,0,0]
[null,"Equipo De Transporte - Terrestre",20330000,0,0,0,20330000,0]
[null,"Total general",20330000,0,0,0,20330000,0]

{"sheet":"InstruccDiligenciamiento","index":2,"n_rows":394,"n_cols":3,"rows_kept":394,"cut":false,"hidden":false,"merged":[[388,2,388,3],[390,2,390,3],[392,2,392,3],[378,2,378,3],[393,2,393,3],[386,2,386,3],[304,2,304,3],[306,2,306,3],[315,2,315,3],[325,2,325,3],[384,2,384,3],[300,2,300,3],[202,2,202,3],[211,2,211,3],[219,2,219,3],[227,2,227,3],[235,2,235,3],[243,2,243,3],[246,2,246,3],[248,2,248,3],[257,2,257,3],[275,2,275,3],[292,2,292,3],[194,2,194,3],[160,2,160,3],[161,2,161,3],[162,2,162,3],[163,2,163,3],[164,2,164,3],[165,2,165,3],[166,2,166,3],[167,2,167,3],[168,2,168,3],[169,2,169,3],[184,2,184,3],[159,2,159,3],[136,2,136,3],[149,2,149,3],[150,2,150,3],[151,2,151,3],[152,2,152,3],[153,2,153,3],[154,2,154,3],[155,2,155,3],[156,2,156,3],[157,2,157,3],[158,2,158,3],[127,2,127,3],[84,2,84,3],[85,2,85,3],[87,2,87,3],[89,2,89,3],[90,2,90,3],[106,2,106,3],[107,2,107,3],[122,2,122,3],[124,2,124,3],[125,2,125,3],[126,2,126,3],[2,2,2,3],[59,2,59,3],[80,2,80,3],[82,2,82,3],[25,2,25,3],[35,2,35,3],[4,2,4,3],[44,2,44,3],[54,2,54,3],[65,2,66,3],[72,2,72,3],[73,2,73,3],[75,2,75,3],[79,2,79,3]]}
[]
[]
[null,null,"INSTRUCCIONES PARA EL DILIGENCIAMIENTO DEL FORMATO\nPROPIEDADES, PLANTA Y EQUIPO EN LOS ACUERDOS DE CONCESIÓN DE INFRAESTRUCTURA DE TRANSPORTE DEL MODO CARRETERO BAJO EL NUEVO MARCO NORMATIVO PARA ENTIDADES DE GOBIERNO"]
[]
[null,null,"Formato PP&E Carretero: Esta hoja contiene el formato “GCSP-F-301 - PROPIEDADES, PLANTA Y EQUIPO EN LOS ACUERDOS DE CONCESIÓN DE INFRAESTRUCTURA DE TRANSPORTE DEL MODO CARRETERO MARCO NORMATIVO PARA ENTIDADES DE GOBIERNO”, información final que será reportada para su registro en los estados financieros de la Agencia."]
[]
[]
[null,null,"DILIGENCIAMIENTO “Formato PP&E Carretero”:"]
[]
[null,null,"Este archivo debe ser descargado de la pagina web de la Agencia en siguiente enlace: "]
[]
[null,null,"https://www.ani.gov.co/sig/documentos-sig?field_tipo_de_documento_tid=All&field_tipo_de_formato_tid=All&field_codigo_value=GCSP-F-301&title="]
[]
[]
[]
[null,null,"Nota:"]
[null,null,"Para abrir el archivo por primera vez una vez descargado del link por favor seguir las siguientes instrucciones"]
[null,null,"buscar en descargas dar click derecho sobre el archivo Excel /propiedades/seguridad"]
[null,null,"dar cclic en desbloquear y luego aplicar"]
[]
[]
[null,null,"1.  DATOS DE IDENTIFICACIÓN DEL PROYECTO"]
[]
[null,null,"Las columnas con fuente de color anaranjado       corresponden a información que debe ser diligenciada por el usuario. "]
[]
[null,null,"Proyecto de Concesión: En este campo, el usuario debe seleccionar de la lista desplegable el proyecto de concesión a reportar."]
[]
[]
[]
[]
[]
[]
[]
[]
[]
[null,null,"No. de Contrato de concesión; NIT del concesionario; Fecha inicial del contrato; plazo inicial de la concesión: Una vez seleccionado el proyecto de concesión, los valores de estos campos se completarán automáticamente, sin necesidad de intervención por parte del usuario."]
[]
[]
[]
[]
[]
[]
[]
[]
[null,null,"Con corte a: Diligenciar la fecha de corte del reporte en formato DD/MM/AAAA"]
[]
[]
[]
[]
[]
[]
[]
[]
[]
[null,null,"Periodicidad: Seleccione la periodicidad del reporte  (Reversión / Anual)   desde la lista desplegable."]
[]
[]
[]
[]
[]
[]
[]
[]
[]
[]
[null,null,"El reporte se elaborará de manera ANUAL, con base en la actualización de la información de propiedades, planta y equipo correspondiente a la vigencia respectiva. “Reversión” será aplicado en la fecha efectiva en que tenga lugar la reversión del proyecto (lo cual puede ocurrir en cualquier fecha del año)."]
[]
[]
[]
[]
[null,null,"2.  REPORTE ACUMULADO"]
[]
[null,null,"El reporte acumulado consolida la información correspondiente a los movimientos realizados por el concesionario, durante el periodo a reportar, los cuales se encuentran detallados en la sección “3. ANEXOS: PROPIEDADES, PLANTA Y EQUIPO - SOFTWARE Y LICENCIAS EN CONCESIÓN”. "]
[null,null,"Esta sección permite al usuario visualizar de manera acumulada, los saldos anteriores, los movimientos del periodo y los saldos finales por cada subgrupo de propiedades, planta y equipo, software y licencias, que tengan la calidad de reversibles a la nación en el momento de terminación del acuerdo, según los lineamientos establecidos en el contrato de concesión."]
[]
[null,null,"·        Concepto Activo: Corresponde a la categorización detallada en la que deben clasificarse los activos de propiedades, planta y equipo, licencias y \n        software."]
[]
[null,null,"·        Valor del activo:"]
[]
[null,null,"        1.      Anterior: Corresponde al valor acumulado de las adquisiciones realizadas antes del periodo reportado."]
[null,null,"        2.      Actual: Corresponde al valor de las adquisiciones y/o actualizaciones realizadas durante el periodo reportado."]
[]
[null,null,"·        Depreciación y/o Amortización Acumulada:"]
[]
[null,null,"        1.      Anterior: Corresponde al monto calculado por concepto de depreciación y/o amortizaciones de las adquisiciones realizadas antes del\n                periodo reportado."]
[null,null,"        2.      Actual: Corresponde al valor de las depreciaciones y/o amortizaciones de los activos adquiridos y/o actualizados durante el periodo\n                reportado."]
[]
[null,null,"·        Total, Valor del activo: Corresponde a la sumatoria de “Valor activo, 1. Anterior + 2. Actual."]
[]
[null,null,"·        Total, Depreciaciones, Amortizaciones Acumuladas: Corresponde a la sumatoria de Depreciación, Amortización Acumulada 1. Anterior + 2.\n        Actual."]
[null,null,"·        Comentarios y Observaciones de la actualización del periodo: Este campo permite incluir cualquier explicación adicional que sustente o amplíe\n        la información contenida en el reporte."]
[]
[]
[]
[]
[]
[]
[]
[]
[]
[]
[]
[]
[]
[]
[]
[null,null,"Actualización:               Esta acción, permite actualizar la información diligenciada en el ANEXO “Propiedades, planta y equipo, Software y Licencias en Concesión” en el “Reporte acumulado”"]
[null,null,"Se debe pulsar en el icono             Para que la información ingresada en el Numeral 3. ANEXO: PROPIEDADES, PLANTA Y EQUIPO - SOFTWARE Y LICENCIAS EN CONCESIÓN, del presente instructivo se visualice en el 1. REPORTE ACUMULADO.  "]
[]
[]
[]
[]
[]
[]
[]
[]
[]
[]
[]
[]
[]
[]
[null,null,"3.  ANEXO: PROPIEDADES, PLANTA Y EQUIPO - SOFTWARE Y LICENCIAS EN CONCESIÓN"]
[]
[null,null,"Los activos de Propiedades, Planta y Equipo, Software y Licencias, deben ser clasificados de acuerdo con los grupos y subgrupos establecidos en el formato. Esta clasificación es obligatoria, ya que, para el registro de los hechos económicos relacionados con los acuerdos de concesión de infraestructura de transporte la ANI, debe seguirse la estructura definida en el Catálogo General de Cuentas del Marco Normativo para Entidades de Gobierno."]
[null,null,"Grupo: Hace referencia a la ubicación específica de los elementos de Propiedades, Planta y Equipo asignada a los proyectos de concesión. A continuación, se detallan los conceptos incluidos en este grupo:"]
[null,null,"1.1 Equipos de la(s) Estación(es) de Peaje."]
[null,null,"1.2 Equipos de la(s) Estación(es) de Pesaje"]
[null,null,"1.3 Equipos de centros de atención al usuario."]
[null,null,"1.4 Equipos del (los) Centro(s) de Control de Operaciones."]
[null,null,"1.5 Equipos instalados para la Operación del Proyecto."]
[null,null,"1.6 Equipos entregados a la Policía de Carreteras."]
[null,null,"1.7 Elementos de Traslado Asistencial Médico (TAM)"]
[null,null,"2.1 Software"]
[null,null,"2.2 Licencias"]
[]
[null,null,"Para realizar la actualización, del periodo, ya sea por adquisición, traslado o retiros, el usuario deberá seleccionar el grupo en el que debe clasificarse el bien o elemento desde la lista desplegable."]
[]
[]
[]
[]
[]
[]
[]
[]
[]
[]
[]
[]
[null,null,"Subgrupo: Hace referencia al nivel más detallado de desagregación de las Propiedades, Planta y Equipo, Licencias y Software, conforme a la estructura del Catálogo General de Cuentas del Marco Normativo para Entidades de Gobierno. A continuación, se detallan los conceptos incluidos en esta sección:"]
[null,null,"o   Casetas y campamentos: Se deben incluir las casetas que se encuentran en cada una de las estaciones de peaje."]
[null,null,"o   Equipo de centros de control: En este concepto se incorpora aquellos equipos requeridos para el control de la operación de la concesión, por\n     ejemplo: cortina fotoeléctrica de doble haz."]
[null,null,"o   Equipo de computación: En este concepto se relacionan todos los componentes de activos de la concesión relacionados con: computadores,\n     impresoras, servidores, terminales de infracciones computador, cabina de discos ISCASI, entre otros."]
[null,null,"o   Equipo de comunicación: En este concepto se incorporan  unidades de activo que correspondan a equipos de comunicación, dentro de estos      se mencionan: Paneles de led, radio portátil, latiguillos de conexión, sistema para comunicaciones de operación y rescate, estación meteorológica y sensores, tarjetas analizadoras, señal de mensaje variable, video wall mural, semáforos de paso con alarma, indicador de tarifas, repetidor digital, torreta autosoportada, rack de 42 Q, comparenderas, tableros luminosos, alcoholímetros, entre otros."]
[null,null,"o   Equipo de seguridad y rescate: En este concepto se incluyen componentes de activos relacionados con el equipamiento de rescate y de seguridad utilizado por la concesión, tales como: Sirena direccionable, lector grabador de tarjetas, cámaras fijas, cámaras panorámicas de seguridad, lectores de proximidad, barrera para cierre de túnel, cerraduras electromecánicas, centralita de incendios, entre otros."]
[null,null,"o   Equipo de Servicio ambulatorio: Se relacionan en este concepto componentes de activos que equiparan las ambulancias tales como camillas,\n     ventiladores, monitores de ECG, desfibriladores, unidad de succión, entre otros. En este concepto no se incluye el vehículo (ambulancia), estos\n     elementos se deben relacionar únicamente en el rubro de \"Elementos de Traslado Asistencial Médico TAM\"."]
[null,null,"o   Equipo de transporte de Elevación: En este concepto se incluyen los vehículos y equipos de elevación como por ejemplo: las grúas."]
[null,null,"o   Equipo de transporte - De tracción: En este concepto se incorporan todos los equipos que sirven para la elevación y el tensado de cargas \n     múltiples, ejemplo: Equipos grúa instalado en chasis, tractel, entre otros. "]
[null,null,"o   Equipo de transporte- Terrestre: En este concepto se incorporan todos los vehículos adquiridos por el concesionario para el desarrollo de la \n     operación, tales como: carros, motocicletas, camionetas, ambulancias, camiones doble troque, vehículos que son entregados a la policía de \n     carreteras, los cuales serán relacionados en los rubros que correspondan."]
[null,null,"o   Equipos de radares: Se deben relacionar en este concepto, los equipos de radares utilizados por la concesión, a manera de ejemplo se \n     mencionan: radar con cámara laser, radar laser- disco velocidad, entre otros."]
[null,null,"o   Líneas y cables de telecomunicaciones: Se deben incorporar componentes de activos relacionados con redes móviles, cables para centros de \n     datos, cables telefónicos, cables UTP, cables de alimentación, cable coaxial, entre otros."]
[null,null,"o   Líneas y cables de transmisión: En este concepto se incorporan componentes como la red de fibra óptica."]
[null,null,"o   Muebles y enseres: Como su nombre lo indica, se registran todos aquellos componentes de activos como: escritorios, sillas, muebles, \n     archivadores y demás mobiliario que se encuentran ubicados en cada uno de los rubros."]
[null,null,"o   Otra maquinaria y equipo: Se deben incorporar unidades de activo no clasificadas anteriormente, por ejemplo: balanzas dinámicas, balanzas, \n     espiras, controladores de gálibo, pica de tierra, opacímetro, sensor electroquímico, entre otros."]
[null,null,"o   Otras redes, líneas y cables: Se deben registrar en este concepto, unidades de activo, que corresponden a otras redes líneas y cables distintos a los indicados anteriormente, por ejemplo: Cables de alimentación, cables de alimentación paneles, caja de empalme terminal, entre otras."]
[null,null,"o   Plantas de generación: En este concepto de deben incorporar componentes de activo como lo son las plantas eléctricas."]
[null,null,"o   Satélites y antenas: En este concepto se relacionan los componentes de activos de la concesión tales como: Sistemas de antenas para bandas, antenas de telepeaje, entre otros satélites y antenas que sean utilizados por las concesiones."]
[null,null,"o   Software – Concesiones: En este subgrupo únicamente se registrarán los activos cuya naturaleza correspondan a intangibles, los equipos de \n     computación donde se encuentren ubicados los Software deberán registrarse en el subgrupo de Propiedades, Planta y Equipo (Equipos de \n     computación)."]
[null,null,"o   Licencias – Concesiones: En este subgrupo únicamente se registrarán los activos cuya naturaleza correspondan a licencias, los equipos de \n     computación donde se encuentren ubicados los Software deberán registrarse en el subgrupo de Propiedades, Planta y Equipo (Equipos de \n     computación)."]
[null,null,"Una vez identificado el subgrupo al que corresponde el bien o elemento, el usuario seleccionará de la lista desplegable el ítem respectivo."]
[]
[]
[]
[]
[]
[]
[]
[]
[]
[]
[]
[]
[]
[]
[null,null,"Ítem: Esta celda es editable y el usuario registrará una descripción detallada del bien o elemento,  para contar con una adecuada identificación del mismo, a modo de ejemplo: “MOTOCICLETAS YAMAHA XT660 S/N 9FKDM0615F2700876” "]
[]
[]
[]
[]
[]
[]
[]
[]
[]
[null,null,"Fecha de Adquisición: Esta celda ES EDITABLE y en la misma se debe registrar la fecha (DD/MM/AAAA) en la cual el activo fue adquirido."]
[]
[]
[]
[]
[]
[]
[]
[null,null,"Valor del Activo (COP$): Esta celda ES EDITABLE y se debe registrar el valor de la adquisición a en pesos colombianos (COP), por unidad de activo. "]
[]
[]
[]
[]
[]
[]
[]
[]
[null,null,"Vida útil total (años): Este campo ES EDITABLE y se debe informar el número total en años que estima tendrá de vida útil del activo, desde su puesta en operación."]
[]
[]
[]
[]
[]
[]
[]
[null,null,"Vida útil remanente (años): Este campo es de cálculo automático (no editable) y corresponde a la diferencia entre la vida útil total de un activo y el tiempo que ya ha transcurrido desde su adquisición o puesta en funcionamiento, expresada en años."]
[]
[]
[]
[]
[]
[]
[]
[null,null,"Depreciación, Amortización Acumulada (COP$): Este campo es de cálculo automático (No editable) y corresponde al valor en pesos colombianos (COP) acumulado de la depreciación o amortización de las Propiedades Planta y Equipo, de acuerdo con los componentes activos informados y con la política contable desarrollada por la concesión."]
[]
[]
[]
[]
[]
[]
[]
[null,null,"Valor remanente del Activo (COP$): Este campo es de cálculo automático (no es editable) y corresponde al valor pendiente por depreciar del bien o elemento."]
[]
[]
[]
[]
[]
[]
[]
[null,null,"Novedad: En este campo del formato se han dispuesto dos opciones en una lista desplegable, las cuales se pueden utilizar dentro del ciclo normal de las actividades y movimientos relacionados con propiedades, planta y equipo, software y licencias. Las opciones son: \"Traslado\" y \"Retiros\"."]
[null,null,"Traslados: "]
[]
[null,null,"Cuando sea necesario trasladar un bien o elemento de un \"Grupo\" o \"Subgrupo\" para reflejar la realidad económica, se deben seguir estos pasos:"]
[]
[null,null,"1.      Identificación del bien o elemento: Localizar el bien o elemento correspondiente en el detalle discriminado que se encuentra en el numeral 3 del ANEXO: PROPIEDADES, PLANTA Y EQUIPO - SOFTWARE Y LICENCIAS EN CONCESIÓN."]
[]
[]
[]
[]
[]
[]
[]
[]
[null,null,"2.    Acciones en el formato: Haz clic en el ícono \"+\" ubicado en la esquina superior derecha de la regla (Desagregar columnas), tal como se muestra\n        en la imagen a continuación:"]
[]
[]
[]
[]
[]
[]
[]
[]
[]
[]
[]
[]
[]
[]
[]
[]
[]
[null,null,"Se desplegará la siguiente información: \"Grupo (Traslado)\" y \"Subgrupo (Traslado)\". Al realizar clic en la lista desplegable, se mostrará un listado de opciones, y el usuario podrá seleccionar, según su criterio, el \"Grupo\" y \"Subgrupo\" a los que se trasladará el elemento. "]
[]
[]
[]
[]
[]
[]
[]
[]
[]
[]
[]
[]
[]
[]
[]
[]
[null,null,"En el campo \"Fecha de novedad\", se debe digitar la fecha en la que se realiza el traslado."]
[]
[]
[]
[]
[]
[]
[]
[null,null,"Una vez clasificado el elemento, la información correspondiente se reflejará en el \"Grupo\" y \"Subgrupo\" a los cuales se efectuó el traslado."]
[]
[null,null,"Retiros: "]
[]
[null,null,"Cuando un bien o elemento deba ser retirado, el usuario seguirá los siguientes pasos:"]
[]
[null,null,"1.      Identificación del bien o elemento: Localiza el bien o elemento correspondiente en el detalle discriminado que se encuentra en el numeral 3 del ANEXO: PROPIEDADES, PLANTA Y EQUIPO - SOFTWARE Y LICENCIAS EN CONCESIÓN."]
[]
[]
[]
[]
[]
[]
[]
[]
[null,null,"2.      Acciones en el formato: Al seleccionar la opción “Retirados”, es necesario agregar en la columna “Fecha de la novedad” la fecha correspondiente al retiro, de manera que en el resumen de resultados se refleje, por año, el detalle de los activos retirados por vigencia."]
[]
[]
[]
[]
[]
[]
[]
[]
[]
[null,null,"La información de los bienes retirado se visualizará de la siguiente manera en el “Reporte Acumulado”"]
[]
[]
[]
[]
[]
[]
[]
[]
[]
[]
[]
[]
[]
[]
[]
[]
[]
[]
[]
[]
[]
[]
[]
[]
[]
[]
[]
[]
[]
[]
[]
[]
[]
[]
[]
[]
[]
[]
[]
[]
[]
[]
[]
[]
[]
[]
[]
[]
[]
[]
[null,null,"4.      FIRMAS"]
[]
[null,null,"El formato debe estar firmado por  todas las personas indicadas para su posterior radicación en el Sistema de Gestión Documental de la entidad. En caso de que el formato no disponga de todas las firmas, se requiere que el área dé alcance al radicado con el formato en debida forma. "]
[]
[]
[]
[null,null,"Anotaciones finales:"]
[]
[null,null,"a.  Tener en cuenta que los activos de propiedades, planta y equipo, software y licencias que hayan sido adquiridos bajo la modalidad de outsourcing \n      o leasing, no se registran."]
[]
[null,null,"b.  Sólo se registran los activos de propiedades, planta y equipo, software y licencias cuya sumatoria en conjunto sea mayor a $1.000.000 (Un millón de pesos)"]
[]
[null,null,"c.  Sólo registrar los activos que cumplan la calidad de propiedades, planta y equipo, software y licencias y que tengan la calidad de activos \n     revertibles a la Nación; no listar los activos que hacen parte de la infraestructura."]
[]
[null,null,"d.  Quien procesa y reporta la información debe realizar las anotaciones necesarias que permitan tener una mayor claridad de los datos, de los \n     documentos y demás actos o aspectos que respalden y soporten las cifras informadas. "]
[]
[null,null,"e. En caso de existir salvedades o información en verificación, debe ser subsanada en el menor tiempo posible, en todo caso, no debe sobrepasar la vigencia fiscal en la cual se generó, con el fin de dar razonabilidad y confiabilidad a las cifras reportadas."]
[null,null,"f.  El reporte anual deberá ser remitido a la Vicepresidencia de Gestión Corporativa en formato PDF y Excel en la fecha pactada en la circular de\n     operaciones y de cierre, es importante indicar que el no envió de la información afecta la razonabilidad de los estados financieros de la Agencia."]

{"sheet":"Formato 301 - PP&E Carretero","index":3,"n_rows":80,"n_cols":19,"rows_kept":80,"cut":false,"hidden":false,"merged":[[2,10,2,11],[2,14,2,17],[12,6,12,10],[11,4,11,5],[12,4,12,5],[11,6,11,14],[12,13,12,14],[0,1,2,4],[0,5,0,17],[1,5,1,17],[2,8,2,9],[2,6,2,7],[4,4,4,12],[7,6,7,14],[8,6,8,14],[14,4,15,17],[17,13,17,14],[9,6,9,14],[10,6,10,14],[6,4,6,5],[6,6,6,12],[7,4,7,5],[8,4,8,5],[9,4,9,5],[10,4,10,5],[12,11,12,12]]}
[null,null,null,null,null,"PROPIEDADES, PLANTA Y EQUIPO EN LOS ACUERDOS DE CONCESIÓN DE INFRAESTRUCTURA DE TRANSPORTE DEL MODO CARRETERO MARCO NORMATIVO PARA ENTIDADES DE GOBIERNO"]
[null,null,null,null,null,"GESTIÓN CONTRACTUAL Y SEGUIMIENTO A PROYECTOS DE INFRAESTRUCTURA DE TRANSPORTE"]
[null,null,null,null,null,"CÓDIGO","GCSP-F-301",null,"VERSIÓN",null,3,null,null,"FECHA","2025-10-16"]
[]
[]
[null,null,null,null,"1. DATOS DE IDENTIFICACIÓN DEL PROYECTO"]
[]
[null,null,null,null,"Proyecto de concesión:",null,"Seleccionar"]
[null,null,null,null,"Contrato de Concesión No: ",null,{"$f":"+VLOOKUP(G8,Parámetros!$G:$M,3,0)","v":0}]
[null,null,null,null,"NIT: ",null,{"$f":"+VLOOKUP(G8,Parámetros!$G:$M,5,0)","v":0}]
[null,null,null,null,"Fecha inicial del contrato:",null,{"$f":"+VLOOKUP(G8,Parámetros!$G:$M,6,0)","v":"00:00:00"}]
[null,null,null,null,"Plazo inicial de la concesión (años):",null,{"$f":"+VLOOKUP(G8,Parámetros!$G:$M,7,0)","v":0}]
[null,null,null,null,"Con corte a: ",null,null,null,null,null,null,"Periodicidad:"]
[]
[null,null,null,null,"Los hechos económicos de las concesiones deben registrarse en la Contabilidad de la Agencia Nacional de Infraestructura - ANI, de acuerdo con los lineamientos señalados en las Resoluciones 602 de 2018 y las normas que la modifiquen, expedidas por la Contaduría General de la Nación; las cuales fueron acogidas mediante el Manual GADF-M-008 \"Manual Contable Bajo El Nuevo Marco Normativo De Contabilidad Pública Como Entidad De Gobierno\", adoptado según Resolución ANI No. 1638 del 31 de agosto de 2018. "]
[]
[]
[null,null,null,null,"2. REPORTE ACUMULADO",null,null,null,null,null,null,null,null,"Actualización:"]
[]
[]
[]
[]
[]
[]
[]
[]
[]
[]
[]
[]
[]
[]
[]
[]
[]
[]
[]
[]
[]
[]
[]
[]
[]
[null,null,null,null,"COMENTARIOS Y OBSERVACIONES ACTUALIZACIÓN DEL PERIODO:"]
[]
[]
[]
[]
[]
[]
[null,null,null,null,"3. ANEXO: PROPIEDADES, PLANTA Y EQUIPO - SOFTWARE Y LICENCIAS EN CONCESIÓN"]
[]
[]
["Grupo\nDefinitivo","Subgrupo\nDefinitivo","Periodo","Clasificación","Grupo","Subgrupo","Item","Fecha de Adquisición","Valor Activo (COP$)\n(1) ","Vida útil total\n(años)","Vida útil remanente\n(años)","Depreciación / Amortización Acumulada\n(COP$)","Valor Deterioro\n(COP$) (3)","Valor remanente del Activo (COP$)","Novedad","Grupo\n(Traslado)","Subgrupo\n(Traslado)","Fecha de la novedad"]
[{"$f":"+IF(Tabla5[[#This Row],[Novedad]]=\"Traslado\",Tabla5[[#This Row],[Grupo\n(Traslado)]],Tabla5[[#This Row],[Grupo]])","v":"1.1 Equipos de la(s) Estación(es) de Peaje"},{"$f":"+IF(Tabla5[[#This Row],[Novedad]]=\"Traslado\",Tabla5[[#This Row],[Subgrupo\n(Traslado)]],Tabla5[[#This Row],[Subgrupo]])","v":"Equipo De Transporte - Terrestre"},{"$f":"+IF(Tabla5[[#This Row],[Fecha de Adquisición]]>FechaCorte,\"3. Posterior\",+IF(Tabla5[[#This Row],[Fecha de Adquisición]]>+EOMONTH(FechaCorte,-IF($N$13=\"Anual\",12,IF($N$13=\"semestral\",6,1))),\"2. Actual\",\"1. Anterior\"))","v":"3. Posterior"},{"$f":"+IF(Tabla5[[#This Row],[Novedad]]=\"Retirados\",+\"Retirados \"&YEAR(Tabla5[[#This Row],[Fecha de la novedad]]),+IF(Tabla5[[#This Row],[Valor remanente del Activo (COP$)]]>0,\"Activo\",\"Activo\"))","v":"Activo"},"1.1 Equipos de la(s) Estación(es) de Peaje","Equipo De Transporte - Terrestre","MOTOCICLETAS YAMAHA XT660 S/N 9FKDM0615F2700876","2020-06-02",20330000,10,{"$f":"(IF(IF(Tabla5[[#This Row],[Fecha de Adquisición]]>FechaCorte,1*Tabla5[[#This Row],[Vida útil total\n(años)]],IF(Tabla5[[#This Row],[Fecha de Adquisición]]>FechaCorte,0,DAYS360(Tabla5[[#This Row],[Fecha de Adquisición]],FechaCorte,0)/+DAYS360(FechaCorte,EOMONTH(Tabla5[[#This Row],[Fecha de Adquisición]],Tabla5[[#This Row],[Vida útil total\n(años)]]*12),0)))<0,0,IF(Tabla5[[#This Row],[Fecha de Adquisición]]>FechaCorte,+Tabla5[[#This Row],[Vida útil total\n(años)]],IF(Tabla5[[#This Row],[Fecha de Adquisición]]>FechaCorte,0,Tabla5[[#This Row],[Vida útil total\n(años)]]-(DAYS360(Tabla5[[#This Row],[Fecha de Adquisición]],FechaCorte,0)/360)))))","v":10},{"$f":"+IF(Tabla5[[#This Row],[Novedad]]=\"Retirados\",Tabla5[[#This Row],[Valor Activo (COP$)\n(1) ]],+(IFERROR(+(1-(Tabla5[[#This Row],[Vida útil remanente\n(años)]]/Tabla5[[#This Row],[Vida útil total\n(años)]]))*Tabla5[[#This Row],[Valor Activo (COP$)\n(1) ]],0)))","v":0},0,{"$f":"+IF(+((Tabla5[[#This Row],[Valor Activo (COP$)\n(1) ]]-Tabla5[[#This Row],[Depreciación / Amortización Acumulada\n(COP$)]]-Tabla5[[#This Row],[Valor Deterioro\n(COP$) (3)]]))<0,0,((Tabla5[[#This Row],[Valor Activo (COP$)\n(1) ]]-Tabla5[[#This Row],[Depreciación / Amortización Acumulada\n(COP$)]]-Tabla5[[#This Row],[Valor Deterioro\n(COP$) (3)]])))","v":20330000},null,null,null,null,"A modo de ejemplo"]
[{"$f":"+IF(Tabla5[[#This Row],[Novedad]]=\"Traslado\",Tabla5[[#This Row],[Grupo\n(Traslado)]],Tabla5[[#This Row],[Grupo]])","v":0},{"$f":"+IF(Tabla5[[#This Row],[Novedad]]=\"Traslado\",Tabla5[[#This Row],[Subgrupo\n(Traslado)]],Tabla5[[#This Row],[Subgrupo]])","v":0},{"$f":"+IF(Tabla5[[#This Row],[Fecha de Adquisición]]>FechaCorte,\"3. Posterior\",+IF(Tabla5[[#This Row],[Fecha de Adquisición]]>+EOMONTH(FechaCorte,-IF($N$13=\"Anual\",12,IF($N$13=\"semestral\",6,1))),\"2. Actual\",\"1. Anterior\"))","v":{"$error":"#NUM!"}},{"$f":"+IF(Tabla5[[#This Row],[Novedad]]=\"Retirados\",+\"Retirados \"&YEAR(Tabla5[[#This Row],[Fecha de la novedad]]),+IF(Tabla5[[#This Row],[Valor remanente del Activo (COP$)]]>0,\"Activo\",\"Activo\"))","v":"Activo"},null,null,null,null,null,null,{"$f":"(IF(IF(Tabla5[[#This Row],[Fecha de Adquisición]]>FechaCorte,1*Tabla5[[#This Row],[Vida útil total\n(años)]],IF(Tabla5[[#This Row],[Fecha de Adquisición]]>FechaCorte,0,DAYS360(Tabla5[[#This Row],[Fecha de Adquisición]],FechaCorte,0)/+DAYS360(FechaCorte,EOMONTH(Tabla5[[#This Row],[Fecha de Adquisición]],Tabla5[[#This Row],[Vida útil total\n(años)]]*12),0)))<0,0,IF(Tabla5[[#This Row],[Fecha de Adquisición]]>FechaCorte,+Tabla5[[#This Row],[Vida útil total\n(años)]],IF(Tabla5[[#This Row],[Fecha de Adquisición]]>FechaCorte,0,Tabla5[[#This Row],[Vida útil total\n(años)]]-(DAYS360(Tabla5[[#This Row],[Fecha de Adquisición]],FechaCorte,0)/360)))))","v":0},{"$f":"+IF(Tabla5[[#This Row],[Novedad]]=\"Retirados\",Tabla5[[#This Row],[Valor Activo (COP$)\n(1) ]],+(IFERROR(+(1-(Tabla5[[#This Row],[Vida útil remanente\n(años)]]/Tabla5[[#This Row],[Vida útil total\n(años)]]))*Tabla5[[#This Row],[Valor Activo (COP$)\n(1) ]],0)))","v":0},null,{"$f":"+IF(+((Tabla5[[#This Row],[Valor Activo (COP$)\n(1) ]]-Tabla5[[#This Row],[Depreciación / Amortización Acumulada\n(COP$)]]-Tabla5[[#This Row],[Valor Deterioro\n(COP$) (3)]]))<0,0,((Tabla5[[#This Row],[Valor Activo (COP$)\n(1) ]]-Tabla5[[#This Row],[Depreciación / Amortización Acumulada\n(COP$)]]-Tabla5[[#This Row],[Valor Deterioro\n(COP$) (3)]])))","v":0}]
[{"$f":"+IF(Tabla5[[#This Row],[Novedad]]=\"Traslado\",Tabla5[[#This Row],[Grupo\n(Traslado)]],Tabla5[[#This Row],[Grupo]])","v":0},{"$f":"+IF(Tabla5[[#This Row],[Novedad]]=\"Traslado\",Tabla5[[#This Row],[Subgrupo\n(Traslado)]],Tabla5[[#This Row],[Subgrupo]])","v":0},{"$f":"+IF(Tabla5[[#This Row],[Fecha de Adquisición]]>FechaCorte,\"3. Posterior\",+IF(Tabla5[[#This Row],[Fecha de Adquisición]]>+EOMONTH(FechaCorte,-IF($N$13=\"Anual\",12,IF($N$13=\"semestral\",6,1))),\"2. Actual\",\"1. Anterior\"))","v":{"$error":"#NUM!"}},{"$f":"+IF(Tabla5[[#This Row],[Novedad]]=\"Retirados\",+\"Retirados \"&YEAR(Tabla5[[#This Row],[Fecha de la novedad]]),+IF(Tabla5[[#This Row],[Valor remanente del Activo (COP$)]]>0,\"Activo\",\"Activo\"))","v":"Activo"},null,null,null,null,null,null,{"$f":"(IF(IF(Tabla5[[#This Row],[Fecha de Adquisición]]>FechaCorte,1*Tabla5[[#This Row],[Vida útil total\n(años)]],IF(Tabla5[[#This Row],[Fecha de Adquisición]]>FechaCorte,0,DAYS360(Tabla5[[#This Row],[Fecha de Adquisición]],FechaCorte,0)/+DAYS360(FechaCorte,EOMONTH(Tabla5[[#This Row],[Fecha de Adquisición]],Tabla5[[#This Row],[Vida útil total\n(años)]]*12),0)))<0,0,IF(Tabla5[[#This Row],[Fecha de Adquisición]]>FechaCorte,+Tabla5[[#This Row],[Vida útil total\n(años)]],IF(Tabla5[[#This Row],[Fecha de Adquisición]]>FechaCorte,0,Tabla5[[#This Row],[Vida útil total\n(años)]]-(DAYS360(Tabla5[[#This Row],[Fecha de Adquisición]],FechaCorte,0)/360)))))","v":0},{"$f":"+IF(Tabla5[[#This Row],[Novedad]]=\"Retirados\",Tabla5[[#This Row],[Valor Activo (COP$)\n(1) ]],+(IFERROR(+(1-(Tabla5[[#This Row],[Vida útil remanente\n(años)]]/Tabla5[[#This Row],[Vida útil total\n(años)]]))*Tabla5[[#This Row],[Valor Activo (COP$)\n(1) ]],0)))","v":0},null,{"$f":"+IF(+((Tabla5[[#This Row],[Valor Activo (COP$)\n(1) ]]-Tabla5[[#This Row],[Depreciación / Amortización Acumulada\n(COP$)]]-Tabla5[[#This Row],[Valor Deterioro\n(COP$) (3)]]))<0,0,((Tabla5[[#This Row],[Valor Activo (COP$)\n(1) ]]-Tabla5[[#This Row],[Depreciación / Amortización Acumulada\n(COP$)]]-Tabla5[[#This Row],[Valor Deterioro\n(COP$) (3)]])))","v":0}]
[{"$f":"+IF(Tabla5[[#This Row],[Novedad]]=\"Traslado\",Tabla5[[#This Row],[Grupo\n(Traslado)]],Tabla5[[#This Row],[Grupo]])","v":0},{"$f":"+IF(Tabla5[[#This Row],[Novedad]]=\"Traslado\",Tabla5[[#This Row],[Subgrupo\n(Traslado)]],Tabla5[[#This Row],[Subgrupo]])","v":0},{"$f":"+IF(Tabla5[[#This Row],[Fecha de Adquisición]]>FechaCorte,\"3. Posterior\",+IF(Tabla5[[#This Row],[Fecha de Adquisición]]>+EOMONTH(FechaCorte,-IF($N$13=\"Anual\",12,IF($N$13=\"semestral\",6,1))),\"2. Actual\",\"1. Anterior\"))","v":{"$error":"#NUM!"}},{"$f":"+IF(Tabla5[[#This Row],[Novedad]]=\"Retirados\",+\"Retirados \"&YEAR(Tabla5[[#This Row],[Fecha de la novedad]]),+IF(Tabla5[[#This Row],[Valor remanente del Activo (COP$)]]>0,\"Activo\",\"Activo\"))","v":"Activo"},null,null,null,null,null,null,{"$f":"(IF(IF(Tabla5[[#This Row],[Fecha de Adquisición]]>FechaCorte,1*Tabla5[[#This Row],[Vida útil total\n(años)]],IF(Tabla5[[#This Row],[Fecha de Adquisición]]>FechaCorte,0,DAYS360(Tabla5[[#This Row],[Fecha de Adquisición]],FechaCorte,0)/+DAYS360(FechaCorte,EOMONTH(Tabla5[[#This Row],[Fecha de Adquisición]],Tabla5[[#This Row],[Vida útil total\n(años)]]*12),0)))<0,0,IF(Tabla5[[#This Row],[Fecha de Adquisición]]>FechaCorte,+Tabla5[[#This Row],[Vida útil total\n(años)]],IF(Tabla5[[#This Row],[Fecha de Adquisición]]>FechaCorte,0,Tabla5[[#This Row],[Vida útil total\n(años)]]-(DAYS360(Tabla5[[#This Row],[Fecha de Adquisición]],FechaCorte,0)/360)))))","v":0},{"$f":"+IF(Tabla5[[#This Row],[Novedad]]=\"Retirados\",Tabla5[[#This Row],[Valor Activo (COP$)\n(1) ]],+(IFERROR(+(1-(Tabla5[[#This Row],[Vida útil remanente\n(años)]]/Tabla5[[#This Row],[Vida útil total\n(años)]]))*Tabla5[[#This Row],[Valor Activo (COP$)\n(1) ]],0)))","v":0},null,{"$f":"+IF(+((Tabla5[[#This Row],[Valor Activo (COP$)\n(1) ]]-Tabla5[[#This Row],[Depreciación / Amortización Acumulada\n(COP$)]]-Tabla5[[#This Row],[Valor Deterioro\n(COP$) (3)]]))<0,0,((Tabla5[[#This Row],[Valor Activo (COP$)\n(1) ]]-Tabla5[[#This Row],[Depreciación / Amortización Acumulada\n(COP$)]]-Tabla5[[#This Row],[Valor Deterioro\n(COP$) (3)]])))","v":0}]
[{"$f":"+IF(Tabla5[[#This Row],[Novedad]]=\"Traslado\",Tabla5[[#This Row],[Grupo\n(Traslado)]],Tabla5[[#This Row],[Grupo]])","v":0},{"$f":"+IF(Tabla5[[#This Row],[Novedad]]=\"Traslado\",Tabla5[[#This Row],[Subgrupo\n(Traslado)]],Tabla5[[#This Row],[Subgrupo]])","v":0},{"$f":"+IF(Tabla5[[#This Row],[Fecha de Adquisición]]>FechaCorte,\"3. Posterior\",+IF(Tabla5[[#This Row],[Fecha de Adquisición]]>+EOMONTH(FechaCorte,-IF($N$13=\"Anual\",12,IF($N$13=\"semestral\",6,1))),\"2. Actual\",\"1. Anterior\"))","v":{"$error":"#NUM!"}},{"$f":"+IF(Tabla5[[#This Row],[Novedad]]=\"Retirados\",+\"Retirados \"&YEAR(Tabla5[[#This Row],[Fecha de la novedad]]),+IF(Tabla5[[#This Row],[Valor remanente del Activo (COP$)]]>0,\"Activo\",\"Activo\"))","v":"Activo"},null,null,null,null,null,null,{"$f":"(IF(IF(Tabla5[[#This Row],[Fecha de Adquisición]]>FechaCorte,1*Tabla5[[#This Row],[Vida útil total\n(años)]],IF(Tabla5[[#This Row],[Fecha de Adquisición]]>FechaCorte,0,DAYS360(Tabla5[[#This Row],[Fecha de Adquisición]],FechaCorte,0)/+DAYS360(FechaCorte,EOMONTH(Tabla5[[#This Row],[Fecha de Adquisición]],Tabla5[[#This Row],[Vida útil total\n(años)]]*12),0)))<0,0,IF(Tabla5[[#This Row],[Fecha de Adquisición]]>FechaCorte,+Tabla5[[#This Row],[Vida útil total\n(años)]],IF(Tabla5[[#This Row],[Fecha de Adquisición]]>FechaCorte,0,Tabla5[[#This Row],[Vida útil total\n(años)]]-(DAYS360(Tabla5[[#This Row],[Fecha de Adquisición]],FechaCorte,0)/360)))))","v":0},{"$f":"+IF(Tabla5[[#This Row],[Novedad]]=\"Retirados\",Tabla5[[#This Row],[Valor Activo (COP$)\n(1) ]],+(IFERROR(+(1-(Tabla5[[#This Row],[Vida útil remanente\n(años)]]/Tabla5[[#This Row],[Vida útil total\n(años)]]))*Tabla5[[#This Row],[Valor Activo (COP$)\n(1) ]],0)))","v":0},null,{"$f":"+IF(+((Tabla5[[#This Row],[Valor Activo (COP$)\n(1) ]]-Tabla5[[#This Row],[Depreciación / Amortización Acumulada\n(COP$)]]-Tabla5[[#This Row],[Valor Deterioro\n(COP$) (3)]]))<0,0,((Tabla5[[#This Row],[Valor Activo (COP$)\n(1) ]]-Tabla5[[#This Row],[Depreciación / Amortización Acumulada\n(COP$)]]-Tabla5[[#This Row],[Valor Deterioro\n(COP$) (3)]])))","v":0}]
[{"$f":"+IF(Tabla5[[#This Row],[Novedad]]=\"Traslado\",Tabla5[[#This Row],[Grupo\n(Traslado)]],Tabla5[[#This Row],[Grupo]])","v":0},{"$f":"+IF(Tabla5[[#This Row],[Novedad]]=\"Traslado\",Tabla5[[#This Row],[Subgrupo\n(Traslado)]],Tabla5[[#This Row],[Subgrupo]])","v":0},{"$f":"+IF(Tabla5[[#This Row],[Fecha de Adquisición]]>FechaCorte,\"3. Posterior\",+IF(Tabla5[[#This Row],[Fecha de Adquisición]]>+EOMONTH(FechaCorte,-IF($N$13=\"Anual\",12,IF($N$13=\"semestral\",6,1))),\"2. Actual\",\"1. Anterior\"))","v":{"$error":"#NUM!"}},{"$f":"+IF(Tabla5[[#This Row],[Novedad]]=\"Retirados\",+\"Retirados \"&YEAR(Tabla5[[#This Row],[Fecha de la novedad]]),+IF(Tabla5[[#This Row],[Valor remanente del Activo (COP$)]]>0,\"Activo\",\"Activo\"))","v":"Activo"},null,null,null,null,null,null,{"$f":"(IF(IF(Tabla5[[#This Row],[Fecha de Adquisición]]>FechaCorte,1*Tabla5[[#This Row],[Vida útil total\n(años)]],IF(Tabla5[[#This Row],[Fecha de Adquisición]]>FechaCorte,0,DAYS360(Tabla5[[#This Row],[Fecha de Adquisición]],FechaCorte,0)/+DAYS360(FechaCorte,EOMONTH(Tabla5[[#This Row],[Fecha de Adquisición]],Tabla5[[#This Row],[Vida útil total\n(años)]]*12),0)))<0,0,IF(Tabla5[[#This Row],[Fecha de Adquisición]]>FechaCorte,+Tabla5[[#This Row],[Vida útil total\n(años)]],IF(Tabla5[[#This Row],[Fecha de Adquisición]]>FechaCorte,0,Tabla5[[#This Row],[Vida útil total\n(años)]]-(DAYS360(Tabla5[[#This Row],[Fecha de Adquisición]],FechaCorte,0)/360)))))","v":0},{"$f":"+IF(Tabla5[[#This Row],[Novedad]]=\"Retirados\",Tabla5[[#This Row],[Valor Activo (COP$)\n(1) ]],+(IFERROR(+(1-(Tabla5[[#This Row],[Vida útil remanente\n(años)]]/Tabla5[[#This Row],[Vida útil total\n(años)]]))*Tabla5[[#This Row],[Valor Activo (COP$)\n(1) ]],0)))","v":0},null,{"$f":"+IF(+((Tabla5[[#This Row],[Valor Activo (COP$)\n(1) ]]-Tabla5[[#This Row],[Depreciación / Amortización Acumulada\n(COP$)]]-Tabla5[[#This Row],[Valor Deterioro\n(COP$) (3)]]))<0,0,((Tabla5[[#This Row],[Valor Activo (COP$)\n(1) ]]-Tabla5[[#This Row],[Depreciación / Amortización Acumulada\n(COP$)]]-Tabla5[[#This Row],[Valor Deterioro\n(COP$) (3)]])))","v":0}]
[{"$f":"+IF(Tabla5[[#This Row],[Novedad]]=\"Traslado\",Tabla5[[#This Row],[Grupo\n(Traslado)]],Tabla5[[#This Row],[Grupo]])","v":0},{"$f":"+IF(Tabla5[[#This Row],[Novedad]]=\"Traslado\",Tabla5[[#This Row],[Subgrupo\n(Traslado)]],Tabla5[[#This Row],[Subgrupo]])","v":0},{"$f":"+IF(Tabla5[[#This Row],[Fecha de Adquisición]]>FechaCorte,\"3. Posterior\",+IF(Tabla5[[#This Row],[Fecha de Adquisición]]>+EOMONTH(FechaCorte,-IF($N$13=\"Anual\",12,IF($N$13=\"semestral\",6,1))),\"2. Actual\",\"1. Anterior\"))","v":{"$error":"#NUM!"}},{"$f":"+IF(Tabla5[[#This Row],[Novedad]]=\"Retirados\",+\"Retirados \"&YEAR(Tabla5[[#This Row],[Fecha de la novedad]]),+IF(Tabla5[[#This Row],[Valor remanente del Activo (COP$)]]>0,\"Activo\",\"Activo\"))","v":"Activo"},null,null,null,null,null,null,{"$f":"(IF(IF(Tabla5[[#This Row],[Fecha de Adquisición]]>FechaCorte,1*Tabla5[[#This Row],[Vida útil total\n(años)]],IF(Tabla5[[#This Row],[Fecha de Adquisición]]>FechaCorte,0,DAYS360(Tabla5[[#This Row],[Fecha de Adquisición]],FechaCorte,0)/+DAYS360(FechaCorte,EOMONTH(Tabla5[[#This Row],[Fecha de Adquisición]],Tabla5[[#This Row],[Vida útil total\n(años)]]*12),0)))<0,0,IF(Tabla5[[#This Row],[Fecha de Adquisición]]>FechaCorte,+Tabla5[[#This Row],[Vida útil total\n(años)]],IF(Tabla5[[#This Row],[Fecha de Adquisición]]>FechaCorte,0,Tabla5[[#This Row],[Vida útil total\n(años)]]-(DAYS360(Tabla5[[#This Row],[Fecha de Adquisición]],FechaCorte,0)/360)))))","v":0},{"$f":"+IF(Tabla5[[#This Row],[Novedad]]=\"Retirados\",Tabla5[[#This Row],[Valor Activo (COP$)\n(1) ]],+(IFERROR(+(1-(Tabla5[[#This Row],[Vida útil remanente\n(años)]]/Tabla5[[#This Row],[Vida útil total\n(años)]]))*Tabla5[[#This Row],[Valor Activo (COP$)\n(1) ]],0)))","v":0},null,{"$f":"+IF(+((Tabla5[[#This Row],[Valor Activo (COP$)\n(1) ]]-Tabla5[[#This Row],[Depreciación / Amortización Acumulada\n(COP$)]]-Tabla5[[#This Row],[Valor Deterioro\n(COP$) (3)]]))<0,0,((Tabla5[[#This Row],[Valor Activo (COP$)\n(1) ]]-Tabla5[[#This Row],[Depreciación / Amortización Acumulada\n(COP$)]]-Tabla5[[#This Row],[Valor Deterioro\n(COP$) (3)]])))","v":0}]
[{"$f":"+IF(Tabla5[[#This Row],[Novedad]]=\"Traslado\",Tabla5[[#This Row],[Grupo\n(Traslado)]],Tabla5[[#This Row],[Grupo]])","v":0},{"$f":"+IF(Tabla5[[#This Row],[Novedad]]=\"Traslado\",Tabla5[[#This Row],[Subgrupo\n(Traslado)]],Tabla5[[#This Row],[Subgrupo]])","v":0},{"$f":"+IF(Tabla5[[#This Row],[Fecha de Adquisición]]>FechaCorte,\"3. Posterior\",+IF(Tabla5[[#This Row],[Fecha de Adquisición]]>+EOMONTH(FechaCorte,-IF($N$13=\"Anual\",12,IF($N$13=\"semestral\",6,1))),\"2. Actual\",\"1. Anterior\"))","v":{"$error":"#NUM!"}},{"$f":"+IF(Tabla5[[#This Row],[Novedad]]=\"Retirados\",+\"Retirados \"&YEAR(Tabla5[[#This Row],[Fecha de la novedad]]),+IF(Tabla5[[#This Row],[Valor remanente del Activo (COP$)]]>0,\"Activo\",\"Activo\"))","v":"Activo"},null,null,null,null,null,null,{"$f":"(IF(IF(Tabla5[[#This Row],[Fecha de Adquisición]]>FechaCorte,1*Tabla5[[#This Row],[Vida útil total\n(años)]],IF(Tabla5[[#This Row],[Fecha de Adquisición]]>FechaCorte,0,DAYS360(Tabla5[[#This Row],[Fecha de Adquisición]],FechaCorte,0)/+DAYS360(FechaCorte,EOMONTH(Tabla5[[#This Row],[Fecha de Adquisición]],Tabla5[[#This Row],[Vida útil total\n(años)]]*12),0)))<0,0,IF(Tabla5[[#This Row],[Fecha de Adquisición]]>FechaCorte,+Tabla5[[#This Row],[Vida útil total\n(años)]],IF(Tabla5[[#This Row],[Fecha de Adquisición]]>FechaCorte,0,Tabla5[[#This Row],[Vida útil total\n(años)]]-(DAYS360(Tabla5[[#This Row],[Fecha de Adquisición]],FechaCorte,0)/360)))))","v":0},{"$f":"+IF(Tabla5[[#This Row],[Novedad]]=\"Retirados\",Tabla5[[#This Row],[Valor Activo (COP$)\n(1) ]],+(IFERROR(+(1-(Tabla5[[#This Row],[Vida útil remanente\n(años)]]/Tabla5[[#This Row],[Vida útil total\n(años)]]))*Tabla5[[#This Row],[Valor Activo (COP$)\n(1) ]],0)))","v":0},null,{"$f":"+IF(+((Tabla5[[#This Row],[Valor Activo (COP$)\n(1) ]]-Tabla5[[#This Row],[Depreciación / Amortización Acumulada\n(COP$)]]-Tabla5[[#This Row],[Valor Deterioro\n(COP$) (3)]]))<0,0,((Tabla5[[#This Row],[Valor Activo (COP$)\n(1) ]]-Tabla5[[#This Row],[Depreciación / Amortización Acumulada\n(COP$)]]-Tabla5[[#This Row],[Valor Deterioro\n(COP$) (3)]])))","v":0}]
[{"$f":"+IF(Tabla5[[#This Row],[Novedad]]=\"Traslado\",Tabla5[[#This Row],[Grupo\n(Traslado)]],Tabla5[[#This Row],[Grupo]])","v":0},{"$f":"+IF(Tabla5[[#This Row],[Novedad]]=\"Traslado\",Tabla5[[#This Row],[Subgrupo\n(Traslado)]],Tabla5[[#This Row],[Subgrupo]])","v":0},{"$f":"+IF(Tabla5[[#This Row],[Fecha de Adquisición]]>FechaCorte,\"3. Posterior\",+IF(Tabla5[[#This Row],[Fecha de Adquisición]]>+EOMONTH(FechaCorte,-IF($N$13=\"Anual\",12,IF($N$13=\"semestral\",6,1))),\"2. Actual\",\"1. Anterior\"))","v":{"$error":"#NUM!"}},{"$f":"+IF(Tabla5[[#This Row],[Novedad]]=\"Retirados\",+\"Retirados \"&YEAR(Tabla5[[#This Row],[Fecha de la novedad]]),+IF(Tabla5[[#This Row],[Valor remanente del Activo (COP$)]]>0,\"Activo\",\"Activo\"))","v":"Activo"},null,null,null,null,null,null,{"$f":"(IF(IF(Tabla5[[#This Row],[Fecha de Adquisición]]>FechaCorte,1*Tabla5[[#This Row],[Vida útil total\n(años)]],IF(Tabla5[[#This Row],[Fecha de Adquisición]]>FechaCorte,0,DAYS360(Tabla5[[#This Row],[Fecha de Adquisición]],FechaCorte,0)/+DAYS360(FechaCorte,EOMONTH(Tabla5[[#This Row],[Fecha de Adquisición]],Tabla5[[#This Row],[Vida útil total\n(años)]]*12),0)))<0,0,IF(Tabla5[[#This Row],[Fecha de Adquisición]]>FechaCorte,+Tabla5[[#This Row],[Vida útil total\n(años)]],IF(Tabla5[[#This Row],[Fecha de Adquisición]]>FechaCorte,0,Tabla5[[#This Row],[Vida útil total\n(años)]]-(DAYS360(Tabla5[[#This Row],[Fecha de Adquisición]],FechaCorte,0)/360)))))","v":0},{"$f":"+IF(Tabla5[[#This Row],[Novedad]]=\"Retirados\",Tabla5[[#This Row],[Valor Activo (COP$)\n(1) ]],+(IFERROR(+(1-(Tabla5[[#This Row],[Vida útil remanente\n(años)]]/Tabla5[[#This Row],[Vida útil total\n(años)]]))*Tabla5[[#This Row],[Valor Activo (COP$)\n(1) ]],0)))","v":0},null,{"$f":"+IF(+((Tabla5[[#This Row],[Valor Activo (COP$)\n(1) ]]-Tabla5[[#This Row],[Depreciación / Amortización Acumulada\n(COP$)]]-Tabla5[[#This Row],[Valor Deterioro\n(COP$) (3)]]))<0,0,((Tabla5[[#This Row],[Valor Activo (COP$)\n(1) ]]-Tabla5[[#This Row],[Depreciación / Amortización Acumulada\n(COP$)]]-Tabla5[[#This Row],[Valor Deterioro\n(COP$) (3)]])))","v":0}]
[{"$f":"+IF(Tabla5[[#This Row],[Novedad]]=\"Traslado\",Tabla5[[#This Row],[Grupo\n(Traslado)]],Tabla5[[#This Row],[Grupo]])","v":0},{"$f":"+IF(Tabla5[[#This Row],[Novedad]]=\"Traslado\",Tabla5[[#This Row],[Subgrupo\n(Traslado)]],Tabla5[[#This Row],[Subgrupo]])","v":0},{"$f":"+IF(Tabla5[[#This Row],[Fecha de Adquisición]]>FechaCorte,\"3. Posterior\",+IF(Tabla5[[#This Row],[Fecha de Adquisición]]>+EOMONTH(FechaCorte,-IF($N$13=\"Anual\",12,IF($N$13=\"semestral\",6,1))),\"2. Actual\",\"1. Anterior\"))","v":{"$error":"#NUM!"}},{"$f":"+IF(Tabla5[[#This Row],[Novedad]]=\"Retirados\",+\"Retirados \"&YEAR(Tabla5[[#This Row],[Fecha de la novedad]]),+IF(Tabla5[[#This Row],[Valor remanente del Activo (COP$)]]>0,\"Activo\",\"Activo\"))","v":"Activo"},null,null,null,null,null,null,{"$f":"(IF(IF(Tabla5[[#This Row],[Fecha de Adquisición]]>FechaCorte,1*Tabla5[[#This Row],[Vida útil total\n(años)]],IF(Tabla5[[#This Row],[Fecha de Adquisición]]>FechaCorte,0,DAYS360(Tabla5[[#This Row],[Fecha de Adquisición]],FechaCorte,0)/+DAYS360(FechaCorte,EOMONTH(Tabla5[[#This Row],[Fecha de Adquisición]],Tabla5[[#This Row],[Vida útil total\n(años)]]*12),0)))<0,0,IF(Tabla5[[#This Row],[Fecha de Adquisición]]>FechaCorte,+Tabla5[[#This Row],[Vida útil total\n(años)]],IF(Tabla5[[#This Row],[Fecha de Adquisición]]>FechaCorte,0,Tabla5[[#This Row],[Vida útil total\n(años)]]-(DAYS360(Tabla5[[#This Row],[Fecha de Adquisición]],FechaCorte,0)/360)))))","v":0},{"$f":"+IF(Tabla5[[#This Row],[Novedad]]=\"Retirados\",Tabla5[[#This Row],[Valor Activo (COP$)\n(1) ]],+(IFERROR(+(1-(Tabla5[[#This Row],[Vida útil remanente\n(años)]]/Tabla5[[#This Row],[Vida útil total\n(años)]]))*Tabla5[[#This Row],[Valor Activo (COP$)\n(1) ]],0)))","v":0},null,{"$f":"+IF(+((Tabla5[[#This Row],[Valor Activo (COP$)\n(1) ]]-Tabla5[[#This Row],[Depreciación / Amortización Acumulada\n(COP$)]]-Tabla5[[#This Row],[Valor Deterioro\n(COP$) (3)]]))<0,0,((Tabla5[[#This Row],[Valor Activo (COP$)\n(1) ]]-Tabla5[[#This Row],[Depreciación / Amortización Acumulada\n(COP$)]]-Tabla5[[#This Row],[Valor Deterioro\n(COP$) (3)]])))","v":0}]
[{"$f":"+IF(Tabla5[[#This Row],[Novedad]]=\"Traslado\",Tabla5[[#This Row],[Grupo\n(Traslado)]],Tabla5[[#This Row],[Grupo]])","v":0},{"$f":"+IF(Tabla5[[#This Row],[Novedad]]=\"Traslado\",Tabla5[[#This Row],[Subgrupo\n(Traslado)]],Tabla5[[#This Row],[Subgrupo]])","v":0},{"$f":"+IF(Tabla5[[#This Row],[Fecha de Adquisición]]>FechaCorte,\"3. Posterior\",+IF(Tabla5[[#This Row],[Fecha de Adquisición]]>+EOMONTH(FechaCorte,-IF($N$13=\"Anual\",12,IF($N$13=\"semestral\",6,1))),\"2. Actual\",\"1. Anterior\"))","v":{"$error":"#NUM!"}},{"$f":"+IF(Tabla5[[#This Row],[Novedad]]=\"Retirados\",+\"Retirados \"&YEAR(Tabla5[[#This Row],[Fecha de la novedad]]),+IF(Tabla5[[#This Row],[Valor remanente del Activo (COP$)]]>0,\"Activo\",\"Activo\"))","v":"Activo"},null,null,null,null,null,null,{"$f":"(IF(IF(Tabla5[[#This Row],[Fecha de Adquisición]]>FechaCorte,1*Tabla5[[#This Row],[Vida útil total\n(años)]],IF(Tabla5[[#This Row],[Fecha de Adquisición]]>FechaCorte,0,DAYS360(Tabla5[[#This Row],[Fecha de Adquisición]],FechaCorte,0)/+DAYS360(FechaCorte,EOMONTH(Tabla5[[#This Row],[Fecha de Adquisición]],Tabla5[[#This Row],[Vida útil total\n(años)]]*12),0)))<0,0,IF(Tabla5[[#This Row],[Fecha de Adquisición]]>FechaCorte,+Tabla5[[#This Row],[Vida útil total\n(años)]],IF(Tabla5[[#This Row],[Fecha de Adquisición]]>FechaCorte,0,Tabla5[[#This Row],[Vida útil total\n(años)]]-(DAYS360(Tabla5[[#This Row],[Fecha de Adquisición]],FechaCorte,0)/360)))))","v":0},{"$f":"+IF(Tabla5[[#This Row],[Novedad]]=\"Retirados\",Tabla5[[#This Row],[Valor Activo (COP$)\n(1) ]],+(IFERROR(+(1-(Tabla5[[#This Row],[Vida útil remanente\n(años)]]/Tabla5[[#This Row],[Vida útil total\n(años)]]))*Tabla5[[#This Row],[Valor Activo (COP$)\n(1) ]],0)))","v":0},null,{"$f":"+IF(+((Tabla5[[#This Row],[Valor Activo (COP$)\n(1) ]]-Tabla5[[#This Row],[Depreciación / Amortización Acumulada\n(COP$)]]-Tabla5[[#This Row],[Valor Deterioro\n(COP$) (3)]]))<0,0,((Tabla5[[#This Row],[Valor Activo (COP$)\n(1) ]]-Tabla5[[#This Row],[Depreciación / Amortización Acumulada\n(COP$)]]-Tabla5[[#This Row],[Valor Deterioro\n(COP$) (3)]])))","v":0}]
[{"$f":"+IF(Tabla5[[#This Row],[Novedad]]=\"Traslado\",Tabla5[[#This Row],[Grupo\n(Traslado)]],Tabla5[[#This Row],[Grupo]])","v":0},{"$f":"+IF(Tabla5[[#This Row],[Novedad]]=\"Traslado\",Tabla5[[#This Row],[Subgrupo\n(Traslado)]],Tabla5[[#This Row],[Subgrupo]])","v":0},{"$f":"+IF(Tabla5[[#This Row],[Fecha de Adquisición]]>FechaCorte,\"3. Posterior\",+IF(Tabla5[[#This Row],[Fecha de Adquisición]]>+EOMONTH(FechaCorte,-IF($N$13=\"Anual\",12,IF($N$13=\"semestral\",6,1))),\"2. Actual\",\"1. Anterior\"))","v":{"$error":"#NUM!"}},{"$f":"+IF(Tabla5[[#This Row],[Novedad]]=\"Retirados\",+\"Retirados \"&YEAR(Tabla5[[#This Row],[Fecha de la novedad]]),+IF(Tabla5[[#This Row],[Valor remanente del Activo (COP$)]]>0,\"Activo\",\"Activo\"))","v":"Activo"},null,null,null,null,null,null,{"$f":"(IF(IF(Tabla5[[#This Row],[Fecha de Adquisición]]>FechaCorte,1*Tabla5[[#This Row],[Vida útil total\n(años)]],IF(Tabla5[[#This Row],[Fecha de Adquisición]]>FechaCorte,0,DAYS360(Tabla5[[#This Row],[Fecha de Adquisición]],FechaCorte,0)/+DAYS360(FechaCorte,EOMONTH(Tabla5[[#This Row],[Fecha de Adquisición]],Tabla5[[#This Row],[Vida útil total\n(años)]]*12),0)))<0,0,IF(Tabla5[[#This Row],[Fecha de Adquisición]]>FechaCorte,+Tabla5[[#This Row],[Vida útil total\n(años)]],IF(Tabla5[[#This Row],[Fecha de Adquisición]]>FechaCorte,0,Tabla5[[#This Row],[Vida útil total\n(años)]]-(DAYS360(Tabla5[[#This Row],[Fecha de Adquisición]],FechaCorte,0)/360)))))","v":0},{"$f":"+IF(Tabla5[[#This Row],[Novedad]]=\"Retirados\",Tabla5[[#This Row],[Valor Activo (COP$)\n(1) ]],+(IFERROR(+(1-(Tabla5[[#This Row],[Vida útil remanente\n(años)]]/Tabla5[[#This Row],[Vida útil total\n(años)]]))*Tabla5[[#This Row],[Valor Activo (COP$)\n(1) ]],0)))","v":0},null,{"$f":"+IF(+((Tabla5[[#This Row],[Valor Activo (COP$)\n(1) ]]-Tabla5[[#This Row],[Depreciación / Amortización Acumulada\n(COP$)]]-Tabla5[[#This Row],[Valor Deterioro\n(COP$) (3)]]))<0,0,((Tabla5[[#This Row],[Valor Activo (COP$)\n(1) ]]-Tabla5[[#This Row],[Depreciación / Amortización Acumulada\n(COP$)]]-Tabla5[[#This Row],[Valor Deterioro\n(COP$) (3)]])))","v":0}]
[{"$f":"+IF(Tabla5[[#This Row],[Novedad]]=\"Traslado\",Tabla5[[#This Row],[Grupo\n(Traslado)]],Tabla5[[#This Row],[Grupo]])","v":0},{"$f":"+IF(Tabla5[[#This Row],[Novedad]]=\"Traslado\",Tabla5[[#This Row],[Subgrupo\n(Traslado)]],Tabla5[[#This Row],[Subgrupo]])","v":0},{"$f":"+IF(Tabla5[[#This Row],[Fecha de Adquisición]]>FechaCorte,\"3. Posterior\",+IF(Tabla5[[#This Row],[Fecha de Adquisición]]>+EOMONTH(FechaCorte,-IF($N$13=\"Anual\",12,IF($N$13=\"semestral\",6,1))),\"2. Actual\",\"1. Anterior\"))","v":{"$error":"#NUM!"}},{"$f":"+IF(Tabla5[[#This Row],[Novedad]]=\"Retirados\",+\"Retirados \"&YEAR(Tabla5[[#This Row],[Fecha de la novedad]]),+IF(Tabla5[[#This Row],[Valor remanente del Activo (COP$)]]>0,\"Activo\",\"Activo\"))","v":"Activo"},null,null,null,null,null,null,{"$f":"(IF(IF(Tabla5[[#This Row],[Fecha de Adquisición]]>FechaCorte,1*Tabla5[[#This Row],[Vida útil total\n(años)]],IF(Tabla5[[#This Row],[Fecha de Adquisición]]>FechaCorte,0,DAYS360(Tabla5[[#This Row],[Fecha de Adquisición]],FechaCorte,0)/+DAYS360(FechaCorte,EOMONTH(Tabla5[[#This Row],[Fecha de Adquisición]],Tabla5[[#This Row],[Vida útil total\n(años)]]*12),0)))<0,0,IF(Tabla5[[#This Row],[Fecha de Adquisición]]>FechaCorte,+Tabla5[[#This Row],[Vida útil total\n(años)]],IF(Tabla5[[#This Row],[Fecha de Adquisición]]>FechaCorte,0,Tabla5[[#This Row],[Vida útil total\n(años)]]-(DAYS360(Tabla5[[#This Row],[Fecha de Adquisición]],FechaCorte,0)/360)))))","v":0},{"$f":"+IF(Tabla5[[#This Row],[Novedad]]=\"Retirados\",Tabla5[[#This Row],[Valor Activo (COP$)\n(1) ]],+(IFERROR(+(1-(Tabla5[[#This Row],[Vida útil remanente\n(años)]]/Tabla5[[#This Row],[Vida útil total\n(años)]]))*Tabla5[[#This Row],[Valor Activo (COP$)\n(1) ]],0)))","v":0},null,{"$f":"+IF(+((Tabla5[[#This Row],[Valor Activo (COP$)\n(1) ]]-Tabla5[[#This Row],[Depreciación / Amortización Acumulada\n(COP$)]]-Tabla5[[#This Row],[Valor Deterioro\n(COP$) (3)]]))<0,0,((Tabla5[[#This Row],[Valor Activo (COP$)\n(1) ]]-Tabla5[[#This Row],[Depreciación / Amortización Acumulada\n(COP$)]]-Tabla5[[#This Row],[Valor Deterioro\n(COP$) (3)]])))","v":0}]
[]
[]
[null,null,null,null,"FIRMAS:"]
[]
[]
[]
[]
[]
[]
[null,null,null,null,"GERENTE TECNICO - VEJ",null,null,null,null,null,"GERENTE FINANCIERO - VEJ"]
[null,null,null,null,"Nombre:",null,null,null,null,null,"Nombre:"]
[]
[null,null,null,null,"Nombre Vo Bo. Apoyo Financiero del Proyecto - VEJ",null,null,null,null,null,"Nombre Vo Bo. Apoyo Tecnico del Proyecto - VEJ"]